lending/lending_fUSD_20260222
["ID","MTS","AMOUNT","RATE_DAILY","PERIOD"]
[406336113,1771761050239,-500.0,0.00045224,120]
[406336114,1771761050250,-500.0,0.00045224,120]
[406336115,1771761050263,-500.0,0.00045224,120]
[406336116,1771761050274,-500.0,0.00045224,120]
[406336117,1771761050286,-644.79446246,0.00045224,120]
[406336118,1771761050299,-151.0,0.00045224,120]
[406336119,1771761050314,-500.0,0.00045225,7]
[406336120,1771761050328,-196.35857164,0.00045225,7]
[406336121,1771761050341,-392.65378736,0.0004526,30]
[406336122,1771761050353,-392.65378736,0.0004526,30]
[406336123,1771761050364,-392.65378736,0.0004526,30]
[406336124,1771761050377,-154.45264033,0.00045267,30]
[406336125,1771761050391,-154.45264033,0.00045267,30]
[406336126,1771761050403,-151.0,0.00045277,14]
[406336127,1771761050416,-151.0,0.00045277,14]
[406336128,1771761050429,-192.41511,0.00045277,14]
[406336129,1771761050441,-151.0,0.00045277,120]
[406336130,1771761050454,-151.0,0.00045277,120]
[406336131,1771761050466,-151.0,0.00045277,120]
[406336132,1771761050478,-151.0,0.00045277,120]
[406336133,1771761050490,-151.0,0.00045277,120]
[406336134,1771761050502,-151.0,0.00045277,120]
[406336135,1771761050514,-151.0,0.00045277,120]
[406336136,1771761050526,-151.0,0.00045277,120]
[406336137,1771761050538,-256.047177,0.00045277,120]
[406336138,1771761050549,-256.047177,0.00045277,120]
[406336139,1771761050560,-256.047177,0.00045277,120]
[406336140,1771761050572,-256.047177,0.00045277,120]
[406336141,1771761050584,-256.047177,0.00045277,120]
[406336142,1771761050596,-256.047177,0.00045277,120]
[406336143,1771761050607,-256.047177,0.00045277,120]
[406336144,1771761050619,-256.047171,0.00045277,120]
[406336145,1771761050630,-151.0,0.00045277,120]
[406336146,1771761050641,-151.0,0.00045277,120]
[406336147,1771761050652,-151.0,0.00045277,120]
[406336148,1771761050664,-151.0,0.00045277,120]
[406336149,1771761050676,-152.59,0.00045285,120]
[406336150,1771761050688,-251.74322487,0.00045288,30]
[406336151,1771761050700,-251.74322487,0.00045288,30]
[406336152,1771761050717,-151.0,0.00045289,120]
[406336153,1771761050730,-151.0,0.00045289,120]
[406336154,1771761050743,-151.0,0.00045289,120]
[406336155,1771761050756,-151.0,0.00045289,120]
[406336156,1771761050768,-151.0,0.00045289,120]
[406336157,1771761050780,-151.0,0.00045289,120]
[406336158,1771761050791,-151.0,0.00045289,120]
[406336159,1771761050802,-151.0,0.00045289,120]
[406336160,1771761050813,-151.0,0.00045289,120]
[406336161,1771761050825,-151.0,0.00045289,120]
[406336162,1771761050836,-274.29,0.00045289,30]
[406336163,1771761050847,-183.59,0.000453,14]
[406336164,1771761050859,-196.33,0.000453,30]
[406336165,1771761050871,-150.71,0.000453,14]
[406336166,1771761050883,-150.93,0.000453,14]
[406336167,1771761050894,-617.32851943,0.00045302,2]
[406336168,1771761050907,-32919.50743187,0.00045302,2]
[406336169,1771761050918,-59935.21875387,0.00045302,4]
[406336170,1771761050929,-151.0,0.00045302,120]
[406336171,1771761050940,-151.0,0.00045302,120]
[406336172,1771761050951,-151.0,0.00045302,120]
[406336173,1771761050963,-151.0,0.00045302,120]
[406336174,1771761050974,-151.0,0.00045302,120]
[406336175,1771761050986,-242.722816,0.00045302,60]
[406336176,1771761050999,-151.0,0.00045302,120]
[406336177,1771761051011,-151.0,0.00045302,120]
[406336178,1771761051024,-151.0,0.00045302,120]
[406336179,1771761051036,-151.0,0.00045302,120]
[406336180,1771761051048,-151.0,0.00045302,120]
[406336181,1771761051062,-151.0,0.00045302,120]
[406336182,1771761051075,-151.0,0.00045302,120]
[406336183,1771761051088,-151.0,0.00045302,120]
[406336184,1771761051101,-573.153477,0.00045302,120]
[406336185,1771761051114,-573.153477,0.00045302,120]
[406336186,1771761051126,-573.153477,0.00045302,120]
[406336187,1771761051140,-573.153477,0.00045302,120]
[406336188,1771761051153,-573.153477,0.00045302,120]
[406336189,1771761051166,-573.153477,0.00045302,120]
[406336190,1771761051179,-573.153477,0.00045302,120]
[406336191,1771761051195,-573.153483,0.00045302,120]
[406336192,1771761051208,-281.176674,0.00045302,120]
[406336193,1771761051221,-281.176674,0.00045302,120]
[406336194,1771761051235,-281.176674,0.00045302,120]
[406336195,1771761051248,-281.176674,0.00045302,120]
[406336196,1771761051262,-281.176674,0.00045302,120]
[406336197,1771761051274,-281.176674,0.00045302,120]
[406336198,1771761051287,-281.176674,0.00045302,120]
[406336199,1771761051300,-281.176666,0.00045302,120]
[406336200,1771761051313,-258.475464,0.00045302,7]
[406336201,1771761051327,-151.0,0.00045302,120]
[406336202,1771761051340,-265.06702,0.00045302,120]
[406336203,1771761051353,-1469753.78187823,0.00045303,10]
[406336204,1771761051746,-422.854,0.00023198,2]
[406336205,1771761051757,-413.0,0.00026198,2]
[406336206,1771761051767,-413.0,0.00029198,2]
[406336207,1771761051779,-1000.0,0.00034198,7]
[406336208,1771761051789,-1000.0,0.00034472,7]
[406336209,1771761051799,-1000.0,0.00034746,7]
[406336210,1771761051809,-1000.0,0.0003502,7]
[406336211,1771761051820,-1000.0,0.00035294,7]
[406336212,1771761051831,-1000.0,0.00035568,7]
[406336213,1771761051842,-1000.0,0.00035842,14]
[406336214,1771761051853,-151.0,0.00041096,31]
[406336215,1771761051863,-151.0,0.00041096,31]
[406336216,1771761051874,-191.974451,0.0004365,31]
[406336217,1771761051884,-150.0,0.000444,120]
[406336218,1771761051895,-308953.96877129,0.00045303,10]
[406336219,1771761051932,-213.04797785,0.00016286,2]
[406336220,1771761051943,-1095.73243918,0.00016645,2]
[406336221,1771761051956,-779.97233681,0.00017708,2]
[406336222,1771761051967,-3142.82611777,0.00045303,10]
[406336223,1771761051990,-179.48,0.00045,30]
[406336224,1771761052001,-1113.55,0.00045,30]
[406336225,1771761052013,-25264.79809552,0.00045303,10]
[406336226,1771761052026,-41588.4,0.00045303,10]
[406336227,1771761052057,-699.98306068,0.00045303,10]
[406336228,1771761305597,462.92,0.00015,2]
[406336232,1771761395083,1000.0,0.000122,2]
[406336262,1771762186222,1225.57,0.00015,2]
[406336263,1771762231856,-500.0,0.00015773,2]
[406336264,1771762231868,-500.0,0.00015773,2]
[406336265,1771762231877,-600.0,0.00015938,2]
[406336266,1771762231887,-200.0,0.00016051,3]
[406336267,1771762231897,-600.0,0.00016151,2]
[406336268,1771762231907,-600.0,0.00016151,2]
[406336270,1771762231916,-600.0,0.00016151,2]
[406336271,1771762231926,-450.0,0.00016238,30]
[406336272,1771762231936,-300.0,0.0001632,2]
[406336273,1771762231946,-600.0,0.00016321,2]
[406336274,1771762231955,-617.04551055,0.00016321,2]
[406336275,1771762231965,-504.62313566,0.00016321,2]
[406336276,1771762231975,-163.45,0.00016712,2]
[406336277,1771762231984,-600.0,0.0001735,2]
[406336278,1771762231993,-150.99,0.00017541,2]
[406336279,1771762232002,-369.06,0.00017541,2]
[406336280,1771762232012,-150.99,0.00017541,2]
[406336281,1771762232021,-299.99,0.00017541,4]
[406336282,1771762232030,-1401.18,0.00017541,2]
[406336283,1771762232040,-168.0,0.00018899,2]
[406336284,1771762232049,-250.0,0.00020841,2]
[406336285,1771762232059,-173.78509278,0.00021357,2]
[406336286,1771762232071,-200.0,0.00024908,10]
[406336287,1771762232080,-1210.0,0.00025929,2]
[406336288,1771762232090,-877.58013,0.00027,2]
[406336289,1771762232099,-454.49553636,0.0002737,2]
[406336290,1771762232112,-2000.0,0.000301,2]
[406336291,1771762232122,-200.0,0.00031255,27]
[406336292,1771762232131,-512.398066,0.00031535,120]
[406336293,1771762232141,-166.66,0.00032183,30]
[406336294,1771762232158,-166.66,0.0003286,30]
[406336295,1771762232168,-1000.0,0.00033098,2]
[406336296,1771762232177,-166.66,0.00033538,30]
[406336297,1771762232187,-2000.0,0.000338,2]
[406336298,1771762232196,-561.209936,0.000341,18]
[406336299,1771762232205,-166.66,0.00034215,30]
[406336300,1771762232215,-166.66,0.00034893,30]
[406336301,1771762232225,-166.66,0.0003557,30]
[406336302,1771762232234,-454.49553636,0.00035589,30]
[406336303,1771762232243,-200.0,0.00035703,2]
[406336304,1771762232253,-436.26,0.00035772,2]
[406336305,1771762232262,-200.0,0.00035802,45]
[406336306,1771762232271,-161.51,0.00035903,30]
[406336307,1771762232281,-1000.0,0.0003639,14]
[406336308,1771762232290,-1000.0,0.00036664,14]
[406336309,1771762232300,-1000.0,0.00036938,14]
[406336310,1771762232309,-2284.829,0.00037151,47]
[406336311,1771762232323,-237.78,0.00037151,47]
[406336312,1771762232333,-1000.0,0.00037212,14]
[406336313,1771762232342,-1000.0,0.00037235,2]
[406336314,1771762232352,-1000.0,0.00037486,14]
[406336315,1771762232361,-2000.0,0.000375,2]
[406336316,1771762232370,-168.15218869,0.0003756,2]
[406336317,1771762232380,-196.46574185,0.0003756,2]
[406336318,1771762232389,-165.90586647,0.0003756,2]
[406336319,1771762232399,-767.01270748,0.0003756,2]
[406336320,1771762232408,-274.0,0.00037621,30]
[406336321,1771762232417,-36127.13805739,0.0003766,2]
[406336322,1771762237756,-2920484.7026265,0.0003766,2]
[406336323,1771762237865,-1219.53695763,0.0003766,2]
[406336324,1771762237877,-1338.71925437,0.0003766,2]
[406336325,1771762237889,-1367.20663487,0.0003766,2]
[406336408,1771762240864,-1032.444,0.00023223,2]
[406336409,1771762240874,-920.0,0.00026223,2]
[406336410,1771762240888,-920.0,0.00029223,2]
[406336411,1771762240898,-920.0,0.00032223,2]
[406336412,1771762240907,-5666.83562504,0.0003766,2]
[406336413,1771762240922,-295.34044316,0.0003766,2]
[406336414,1771762240934,-317846.79722229,0.0003766,2]
[406336415,1771762240944,-332.14313294,0.0003766,2]
[406336423,1771762243124,-920.0,0.00035223,2]
[406336424,1771762243134,-92.19947126,0.0003766,2]
[406336425,1771762243177,-2818.88970174,0.0003766,2]
[406336426,1771762243188,-2072.73958314,0.0003766,2]
[406336427,1771762245748,-308.50179788,0.0003666,2]
[406336428,1771762245758,-14904.07041863,0.0003766,2]
[406336429,1771762245802,-600.0,0.0003766,2]
[406336642,1771763224908,1386.94,0.0001368,2]
[406336654,1771763431856,-500.0,0.00015001,2]
[406336655,1771763431866,-600.0,0.00015051,2]
[406336656,1771763431876,-497.05436718,0.00015091,2]
[406336657,1771763431889,-102.94563282,0.00015091,2]
[406336658,1771763431898,-600.0,0.00015091,2]
[406336659,1771763431908,-600.0,0.00015091,2]
[406336660,1771763431917,-600.0,0.00015101,2]
[406336661,1771763431928,-479.5237932,0.00015101,2]
[406336662,1771763431946,-40.4762068,0.00015101,2]
[406336663,1771763431955,-300.0,0.00015106,2]
[406336664,1771763431965,-1200.0,0.00015136,2]
[406336665,1771763431974,-300.0,0.00015137,2]
[406336666,1771763431984,-223.41632665,0.00015137,2]
[406336667,1771763431993,-241.06,0.000154,2]
[406336668,1771763432003,-450.0,0.000154,30]
[406336669,1771763432012,-500.0,0.00015773,2]
[406336670,1771763432021,-500.0,0.00015773,2]
[406336671,1771763432031,-500.0,0.00015773,2]
[406336672,1771763432040,-503.32852641,0.00015773,2]
[406336673,1771763432050,-500.0,0.00015773,2]
[406336674,1771763432060,-508.91863581,0.00015773,2]
[406336675,1771763432069,-500.0,0.00015773,2]
[406336677,1771763432079,-573.00614515,0.00015773,2]
[406336678,1771763432088,-500.0,0.00015773,2]
[406336679,1771763432101,-501.01096908,0.00015773,2]
[406336680,1771763432111,-500.0,0.00015773,2]
[406336681,1771763432120,-500.0,0.00016073,2]
[406336682,1771763432129,-1225.96,0.00016123,2]
[406336683,1771763432141,-5000.00706224,0.000162,5]
[406336684,1771763432150,-636.48823945,0.00016321,2]
[406336685,1771763432159,-593.32806004,0.00016321,2]
[406336686,1771763432170,-500.0,0.00016321,2]
[406336687,1771763432182,-501.62516482,0.00016321,2]
[406336688,1771763432191,-1000.0,0.00016321,2]
[406336689,1771763432201,-1000.0,0.00016321,2]
[406336690,1771763432211,-253.11161565,0.00016501,2]
[406336691,1771763432221,-600.0,0.00016501,2]
[406336692,1771763432231,-197.08,0.0001651,2]
[406336693,1771763432240,-300.0,0.00016611,2]
[406336694,1771763432250,-557.34334026,0.00016621,2]
[406336695,1771763432259,-666.0,0.00016647,2]
[406336696,1771763432268,-507.9272245,0.00016868,2]
[406336697,1771763432277,-300.0,0.000174,6]
[406336698,1771763432287,-600.0,0.000175,6]
[406336699,1771763432296,-165.67117837,0.00017533,2]
[406336700,1771763432305,-836.71388812,0.000176,2]
[406336701,1771763432314,-293.34769636,0.000176,2]
[406336702,1771763432324,-325.35205491,0.000176,2]
[406336703,1771763432333,-500.0,0.000176,2]
[406336704,1771763432342,-900.0,0.000176,6]
[406336705,1771763432351,-913530.94035909,0.00017628,2]
[406336706,1771763432363,-23814.13337869,0.00017628,2]
[406336707,1771763432374,-40774.72685703,0.00017628,2]
[406336708,1771763432386,-192773.20707108,0.00017628,2]
[406336709,1771763432397,-1254.41808677,0.00017628,2]
[406336710,1771763432408,-558.27538772,0.00017628,2]
[406336711,1771763432419,-312.7,0.00017628,2]
[406336713,1771763438003,-196.46574185,0.00017528,2]
[406336714,1771763438013,-2326981.59885962,0.00017628,2]
[406336715,1771763438023,-1076482.5841,0.00017628,2]
[406336716,1771763438033,-836.71388811,0.00017633,2]
[406336717,1771763438043,-325.3520549,0.00017633,2]
[406336718,1771763438053,-836.71388811,0.00017667,2]
[406336719,1771763438063,-325.3520549,0.00017667,2]
[406336720,1771763438073,-1200.0,0.000177,6]
[406336721,1771763438083,-836.71388811,0.000177,2]
[406336722,1771763438095,-325.3520549,0.000177,2]
[406336723,1771763438106,-165.67117837,0.00017717,2]
[406336724,1771763438116,-151.0,0.00017717,2]
[406336725,1771763438126,-151.0,0.00017717,2]
[406336727,1771763438135,-151.0,0.00017717,2]
[406336728,1771763438145,-151.0,0.00017717,2]
[406336729,1771763438155,-9999.99,0.00017728,2]
[406336730,1771763438165,-9999.99,0.00017728,2]
[406336731,1771763438175,-150.99,0.00017728,2]
[406336732,1771763438185,-9999.99,0.00017728,2]
[406336733,1771763438195,-9999.99,0.00017728,2]
[406336734,1771763438204,-999.99,0.00017728,2]
[406336735,1771763438214,-299.99,0.00017728,4]
[406336736,1771763438224,-836.71388811,0.00017733,2]
[406336737,1771763438233,-325.3520549,0.00017733,2]
[406336738,1771763438243,-836.71388811,0.00017767,2]
[406336739,1771763438253,-325.3520549,0.00017767,2]
[406336740,1771763438263,-836.71388811,0.000178,2]
[406336741,1771763438273,-325.3520549,0.000178,2]
[406336742,1771763438282,-1500.0,0.000178,6]
[406336743,1771763438291,-836.71388811,0.00017833,2]
[406336744,1771763438301,-325.3520549,0.00017833,2]
[406336745,1771763438310,-836.71388811,0.00017867,2]
[406336746,1771763438320,-325.3520549,0.00017867,2]
[406336748,1771763438330,-765.0,0.0001789,2]
[406336750,1771763438339,-300.0,0.000179,6]
[406336752,1771763438348,-2500.0,0.000179,2]
[406336754,1771763438358,-836.71388811,0.000179,2]
[406336755,1771763438367,-325.3520549,0.000179,2]
[406336756,1771763438376,-165.67117837,0.000179,2]
[406336758,1771763438386,-155.0,0.00017999,2]
[406336759,1771763438395,-426.38828517,0.00017999,2]
[406336760,1771763438406,-500.0,0.00017999,2]
[406336761,1771763438416,-500.0,0.00017999,2]
[406336762,1771763438426,-500.0,0.00017999,2]
[406336763,1771763438436,-500.0,0.00017999,2]
[406336764,1771763438445,-500.0,0.00017999,2]
[406336765,1771763438455,-500.0,0.00017999,2]
[406336766,1771763438464,-500.0,0.00017999,2]
[406336768,1771763438474,-500.0,0.00017999,2]
[406336770,1771763438483,-500.0,0.00017999,2]
[406336772,1771763438492,-500.0,0.00017999,2]
[406336774,1771763438501,-500.0,0.00017999,2]
[406336776,1771763438510,-500.0,0.00017999,2]
[406336777,1771763438519,-500.0,0.00017999,2]
[406336778,1771763438528,-500.0,0.00017999,2]
[406336779,1771763438538,-500.0,0.00017999,2]
[406336780,1771763438547,-500.0,0.00017999,2]
[406336781,1771763438557,-500.0,0.00017999,2]
[406336782,1771763438566,-500.0,0.00017999,2]
[406336783,1771763438576,-500.0,0.00017999,2]
[406336784,1771763438585,-500.0,0.00017999,2]
[406336785,1771763438594,-500.0,0.00017999,2]
[406336786,1771763438603,-500.0,0.00017999,2]
[406336787,1771763438612,-500.0,0.00017999,2]
[406336788,1771763438623,-500.0,0.00017999,2]
[406336789,1771763438632,-500.0,0.00017999,2]
[406336790,1771763438641,-500.0,0.00017999,2]
[406336791,1771763438650,-500.0,0.00017999,2]
[406336792,1771763438660,-500.0,0.00017999,2]
[406336793,1771763438670,-500.0,0.00017999,2]
[406336794,1771763438680,-500.0,0.00017999,2]
[406336795,1771763438689,-500.0,0.00017999,2]
[406336796,1771763438699,-500.0,0.00017999,2]
[406336797,1771763438708,-500.0,0.00017999,2]
[406336798,1771763438718,-500.0,0.00017999,2]
[406336799,1771763438732,-500.0,0.00017999,2]
[406336800,1771763438741,-500.0,0.00017999,2]
[406336801,1771763438751,-500.0,0.00017999,2]
[406336802,1771763438760,-500.0,0.00017999,2]
[406336803,1771763438769,-500.0,0.00017999,2]
[406336804,1771763438778,-500.0,0.00017999,2]
[406336805,1771763438788,-249.02606536,0.00017999,2]
[406336806,1771763438797,-500.0,0.00017999,2]
[406336807,1771763438806,-263.7555946,0.00017999,2]
[406336808,1771763438816,-500.0,0.00017999,2]
[406336809,1771763438826,-500.0,0.00017999,2]
[406336810,1771763438835,-500.0,0.00017999,2]
[406336811,1771763438844,-262890.12323066,0.00018,2]
[406336817,1771763440201,-500.0,0.00017999,2]
[406336818,1771763440210,-500.0,0.00017999,2]
[406336819,1771763440219,-500.0,0.00017999,2]
[406336820,1771763440228,-500.0,0.00017999,2]
[406336821,1771763440238,-500.0,0.00017999,2]
[406336822,1771763440248,-500.0,0.00017999,2]
[406336823,1771763440257,-500.0,0.00017999,2]
[406336824,1771763440266,-500.0,0.00017999,2]
[406336825,1771763440276,-500.0,0.00017999,2]
[406336826,1771763440286,-500.0,0.00017999,2]
[406336827,1771763440295,-500.0,0.00017999,2]
[406336828,1771763440305,-500.0,0.00017999,2]
[406336829,1771763440314,-500.0,0.00017999,2]
[406336830,1771763440323,-500.0,0.00017999,2]
[406336831,1771763440333,-500.0,0.00017999,2]
[406336832,1771763440343,-322.36316788,0.00017999,2]
[406336833,1771763440353,-310024.43405441,0.00018,2]
[406336838,1771763443134,-826.0,0.00018,2]
[406336839,1771763443353,-19836.85169611,0.00018,2]
[406336843,1771763446205,-10357.95087827,0.00018,2]
[406336859,1771764563133,-1000.0,0.000162,2]
[406336860,1771764563153,-600.0,0.00016222,2]
[406336861,1771764563172,-600.0,0.00016243,2]
[406336862,1771764563192,-166.294205,0.00016286,7]
[406336863,1771764563213,-600.0,0.00016396,2]
[406336864,1771764563233,-137.80743635,0.000166,6]
[406336869,1771764632088,-162.19256365,0.000166,6]
[406336870,1771764632099,-544.82605966,0.00016627,2]
[406336918,1771764638181,-55.17394034,0.00016627,2]
[406336920,1771764638192,-161.63,0.00016653,30]
[406336921,1771764638202,-600.0,0.00016656,2]
[406336922,1771764638216,-600.0,0.000167,6]
[406336923,1771764638226,-163.45,0.00016712,2]
[406336924,1771764638237,-500.0,0.00016713,2]
[406336925,1771764638248,-200.0,0.0001673,2]
[406336926,1771764638258,-900.0,0.000168,6]
[406336927,1771764638269,-1200.0,0.00016813,2]
[406336928,1771764638279,-11087.0,0.00016814,2]
[406336929,1771764638290,-999.99,0.00016814,2]
[406336930,1771764638301,-456.0,0.00016818,2]
[406336931,1771764638311,-1200.0,0.000169,6]
[406336932,1771764638321,-309.0,0.00016901,2]
[406336933,1771764638331,-150.0,0.00016954,2]
[406336934,1771764638342,-150.0,0.00016954,2]
[406336935,1771764638352,-500.0,0.00016954,2]
[406336936,1771764638362,-500.0,0.00016954,2]
[406336937,1771764638372,-500.0,0.00016954,2]
[406336938,1771764638382,-500.0,0.00016954,2]
[406336939,1771764638391,-500.0,0.00016954,2]
[406336940,1771764638401,-150.0,0.00016954,2]
[406336941,1771764638412,-150.0,0.00016954,2]
[406336942,1771764638422,-500.0,0.00016954,2]
[406336943,1771764638432,-500.0,0.00016954,2]
[406336944,1771764638445,-500.0,0.00016954,2]
[406336945,1771764638455,-150.0,0.00016954,2]
[406336946,1771764638465,-753.04249938,0.00016988,2]
[406336947,1771764638475,-150.0,0.00016988,2]
[406336948,1771764638486,-202.72864747,0.00016988,2]
[406336949,1771764638497,-165.43649027,0.00016988,2]
[406336950,1771764638508,-195.56513092,0.00016988,2]
[406336951,1771764638520,-552.87914709,0.00016988,2]
[406336952,1771764638530,-838.99765061,0.00016988,2]
[406336953,1771764638539,-195.2711715,0.00016988,2]
[406336954,1771764638550,-196.46574185,0.00016988,2]
[406336955,1771764638561,-150.0,0.00017009,2]
[406336956,1771764638570,-500.0,0.00017009,2]
[406336957,1771764638580,-500.0,0.00017009,2]
[406336958,1771764638589,-500.0,0.00017009,2]
[406336959,1771764638599,-500.0,0.00017009,2]
[406336960,1771764638614,-500.0,0.00017009,2]
[406336961,1771764638624,-500.0,0.00017009,2]
[406336963,1771764638634,-500.0,0.00017009,2]
[406336965,1771764638643,-500.0,0.00017009,2]
[406336967,1771764638653,-150.0,0.00017009,2]
[406336968,1771764638663,-150.0,0.00017043,2]
[406336969,1771764638672,-296.46563881,0.00017064,2]
[406336970,1771764638682,-500.0,0.00017064,2]
[406336971,1771764638691,-500.0,0.00017064,2]
[406336972,1771764638700,-500.0,0.00017064,2]
[406336973,1771764638710,-500.0,0.00017064,2]
[406336974,1771764638720,-500.0,0.00017064,2]
[406336975,1771764638730,-502.65175273,0.00017064,2]
[406336976,1771764638740,-500.0,0.00017064,2]
[406336977,1771764638750,-500.0,0.00017064,2]
[406336978,1771764638759,-150.0,0.00017064,2]
[406336979,1771764638768,-249.02606536,0.0001707,2]
[406336980,1771764638779,-500.0,0.0001707,2]
[406336981,1771764638789,-534.46063724,0.0001707,2]
[406336982,1771764638798,-500.0,0.0001707,2]
[406336983,1771764638808,-403.42391919,0.0001707,2]
[406336984,1771764638817,-563.14702534,0.0001707,2]
[406336985,1771764638827,-500.0,0.0001707,2]
[406336986,1771764638837,-500.0,0.0001707,2]
[406336987,1771764638847,-500.0,0.0001707,2]
[406336988,1771764638856,-500.0,0.0001707,2]
[406336989,1771764638866,-404.38214481,0.0001707,2]
[406336990,1771764638876,-500.0,0.0001707,2]
[406336991,1771764638886,-500.0,0.0001707,2]
[406336992,1771764638896,-605.62844397,0.0001707,2]
[406336993,1771764638906,-500.0,0.0001707,2]
[406336994,1771764638915,-200.04673653,0.0001707,2]
[406336995,1771764638925,-500.0,0.0001707,2]
[406336996,1771764638935,-500.0,0.0001707,2]
[406336997,1771764638944,-500.0,0.0001707,2]
[406336998,1771764638954,-500.0,0.0001707,2]
[406336999,1771764638963,-500.0,0.0001707,2]
[406337000,1771764638972,-500.0,0.0001707,2]
[406337001,1771764638982,-500.0,0.0001707,2]
[406337002,1771764638996,-500.0,0.0001707,2]
[406337003,1771764639006,-500.0,0.0001707,2]
[406337004,1771764639016,-500.0,0.0001707,2]
[406337005,1771764639027,-500.0,0.0001707,2]
[406337006,1771764639036,-500.0,0.0001707,2]
[406337007,1771764639046,-500.0,0.0001707,2]
[406337008,1771764639056,-500.0,0.0001707,2]
[406337009,1771764639065,-500.0,0.0001707,2]
[406337010,1771764639075,-500.0,0.0001707,2]
[406337011,1771764639085,-622.36316788,0.0001707,2]
[406337012,1771764639094,-500.0,0.0001707,2]
[406337013,1771764639104,-500.0,0.0001707,2]
[406337014,1771764639113,-500.0,0.0001707,2]
[406337015,1771764639122,-500.0,0.0001707,2]
[406337016,1771764639132,-500.0,0.0001707,2]
[406337017,1771764639141,-500.0,0.0001707,2]
[406337018,1771764639151,-500.0,0.0001707,2]
[406337019,1771764639160,-500.0,0.0001707,2]
[406337020,1771764639170,-500.0,0.0001707,2]
[406337021,1771764639180,-500.0,0.0001707,2]
[406337022,1771764639189,-500.0,0.0001707,2]
[406337023,1771764639199,-500.0,0.0001707,2]
[406337024,1771764639208,-500.0,0.0001707,2]
[406337025,1771764639218,-500.0,0.0001707,2]
[406337026,1771764639227,-500.0,0.0001707,2]
[406337027,1771764639236,-500.0,0.0001707,2]
[406337028,1771764639246,-500.0,0.0001707,2]
[406337029,1771764639255,-263.7555946,0.0001707,2]
[406337030,1771764639264,-500.0,0.0001707,2]
[406337031,1771764639275,-500.0,0.0001707,2]
[406337032,1771764639285,-500.0,0.0001707,2]
[406337033,1771764639296,-500.0,0.0001707,2]
[406337034,1771764639306,-500.0,0.0001707,2]
[406337035,1771764639316,-500.0,0.0001707,2]
[406337036,1771764639326,-500.0,0.0001707,2]
[406337037,1771764639335,-500.0,0.0001707,2]
[406337038,1771764639345,-500.0,0.0001707,2]
[406337039,1771764639355,-500.0,0.0001707,2]
[406337040,1771764639367,-500.0,0.0001707,2]
[406337041,1771764639376,-500.0,0.0001707,2]
[406337042,1771764639386,-500.0,0.0001707,2]
[406337043,1771764639395,-500.0,0.0001707,2]
[406337044,1771764639405,-500.0,0.0001707,2]
[406337045,1771764639415,-200.0,0.0001707,2]
[406337046,1771764639424,-500.0,0.0001707,2]
[406337047,1771764639433,-500.0,0.0001707,2]
[406337048,1771764639445,-500.0,0.0001707,2]
[406337049,1771764639457,-500.0,0.0001707,2]
[406337050,1771764639468,-500.0,0.0001707,2]
[406337051,1771764639479,-500.0,0.0001707,2]
[406337052,1771764639492,-500.0,0.0001707,2]